bitfinex/quotes_SOLUSD_20240725
["timestamp","ask_amount","ask_price","bid_price","bid_amount"]
[1721924651116,380.5,171.17,171.09,5.8445]
[1721924651319,380.5,171.17,171.05,6.3061]
[1721924651811,380.5,171.17,171.05,7.47484024]
[1721924652012,380.5,171.17,171.1,5.8442]
[1721924652320,380.5,171.17,171.08,5.8451]
[1721924652623,396.4737,171.17,171.09,5.8447]
[1721924652805,380.5,171.17,171.06,1.16889616]
[1721924653009,380.5,171.17,171.13,5.8434]
[1721924653234,380.5,171.17,171.06,21.16889616]
[1721924653235,380.5,171.17,171.06,1.16889616]
[1721924653443,380.5,171.17,171.06,21.16889616]
[1721924653617,380.5,171.17,171.16,5.8424]
[1721924653942,380.5,171.2,171.06,21.16889616]
[1721924654145,15.9737,171.21,171.06,21.16889616]
[1721924654146,380.5,171.19,171.14,5.8429]
[1721924654307,380.5,171.18,171.08,1.16852185]
[1721924654514,380.5,171.18,171.13,5.8434]
[1721924654814,380.5,171.18,171.14,5.843]
[1721924655126,380.5,171.18,171.13,5.8434]
[1721924655623,380.5,171.18,171.14,5.8429]
[1721924655825,380.5,171.18,171.13,5.8434]
[1721924656019,380.5,171.18,171.08,1.16852478]
[1721924656344,380.5,171.18,171.05,6.3061]
[1721924656533,15.9737,171.21,171.11,5.8441]
[1721924656842,15.9737,171.21,171.06,1.16875623]
[1721924657338,15.9737,171.21,171.06,46.1685972]
[1721924657523,15.9737,171.21,171.12,5.8438]
[1721924657722,380.5,171.2,171.12,5.8438]
[1721924657924,380.5,171.2,171.13,5.8433]
[1721924658440,380.5,171.2,171.06,46.1685972]
[1721924658622,380.5,171.2,171.14,5.843]
[1721924658815,380.5,171.2,171.06,46.1685972]
[1721924659149,380.5,171.2,171.15,5.8427]
[1721924659345,380.5,171.2,171.07,1.16840846]
[1721924659643,380.5,171.2,171.14,5.8431]
[1721924660620,380.5,171.2,171.15,5.8427]
[1721924660823,380.5,171.19,171.17,5.842]
[1721924661047,380.5,171.19,171.15,5.8427]
[1721924662414,380.5,171.19,171.07,1.16842577]
[1721924662617,380.5,171.19,171.13,5.8434]
[1721924662845,380.5,171.19,171.14,5.8431]
[1721924663025,380.5,171.19,171.13,5.8434]
[1721924663359,380.5,171.19,171.06,1.16849562]
[1721924663643,380.5,171.19,171.12,5.8438]
[1721924663944,380.5,171.19,171.11,5.844]
[1721924664131,380.5,171.19,171.06,1.16849562]
[1721924664623,380.5,171.19,171.11,5.8441]
[1721924664827,380.5,171.19,171.09,5.8446]
[1721924665027,380.5,171.19,171.1,5.8443]
[1721924665232,380.5,171.19,171.05,6.3061]
[1721924665434,23.4519,171.18,171.07,5.8455]
[1721924665637,23.4519,171.18,171.06,5.8458]
[1721924665821,26.07239535,171.19,171.04,1.16896873]
[1721924665822,6.07239535,171.19,171.04,1.16896873]
[1721924666023,6.07239535,171.19,171.11,5.844]
[1721924666233,380.5,171.2,171.11,5.844]
[1721924666439,6.07102652,171.19,171.1,5.8444]
[1721924666939,23.68102652,171.19,171.08,5.8451]
[1721924667130,49.52262652,171.19,171.03,16.6249]
[1721924667317,23.68102652,171.19,171.04,21.16896031]
[1721924667519,6.07102652,171.19,171.05,1.16894595]
[1721924667728,6.07102652,171.19,171.11,5.8441]
[1721924668120,380.5,171.2,171.1,5.8444]
[1721924668317,380.5,171.2,171.03,16.6249]
[1721924668318,68.6812348,171.19,171.03,16.6249]
[1721924668613,68.6812348,171.19,171.07,5.8452]
[1721924668614,74.5226348,171.19,171.07,5.8452]
[1721924668819,6.0712348,171.19,171.08,1.16889861]
[1721924669018,6.0712348,171.19,171.11,5.8441]
[1721924669240,380.5,171.2,171.05,1.16868045]
[1721924669747,386.57341027,171.2,171.11,5.8441]
[1721924670448,416.13341027,171.2,171.11,5.8441]
[1721924671127,416.13341027,171.2,171.12,5.8438]
[1721924671444,35.63341027,171.2,171.12,5.8438]
[1721924671961,35.63341027,171.2,171.1,5.8442]
[1721924672118,35.63341027,171.2,171.09,5.8447]
[1721924672317,6.07341027,171.2,171.1,65.0]
[1721924672649,15.9737,171.21,171.1,65.0]
[1721924672836,15.9737,171.21,171.13,5.8431]
[1721924673147,15.9737,171.21,171.1,71.133]
[1721924673441,15.9737,171.21,171.11,1.16845898]
[1721924674031,15.9737,171.21,171.15,5.8427]
[1721924675325,15.9737,171.21,171.13,5.8432]
[1721924675650,45.5337,171.21,171.11,5.8438]
[1721924675836,426.0337,171.21,171.11,5.8438]
[1721924676350,426.0337,171.21,171.07,30.7286724]
[1721924676652,426.0337,171.21,171.12,5.8436]
[1721924676653,396.4737,171.21,171.12,5.8436]
[1721924676825,396.4737,171.21,171.08,1.1685567]
[1721924677145,396.4737,171.21,171.16,5.8424]
[1721924677720,396.4737,171.21,171.15,5.8427]
[1721924677921,396.4737,171.21,171.08,20.0]
[1721924678125,10.53754064,171.2,171.06,6.0207]
[1721924678334,47.17,171.18,171.04,1.1689622]
[1721924678553,47.17,171.18,171.05,5.8461]
[1721924678554,423.9522,171.17,171.05,5.8461]
[1721924678933,10.54075434,171.16,171.06,5.8457]
[1721924679740,10.54075434,171.16,171.02,1.16896391]
[1721924679943,10.54075434,171.16,171.07,5.8454]
[1721924680150,380.5,171.17,171.08,5.8449]
[1721924680330,10.54072337,171.16,171.02,1.16896391]
[1721924680845,10.54072337,171.16,171.07,5.8454]
[1721924681159,6.0393,171.14,171.02,5.8469]
[1721924681331,6.0393,171.14,170.99,15.9701]
[1721924681332,10.54215778,171.13,171.03,5.8469]
[1721924681527,453.65215778,171.13,170.98,1.16926996]
[1721924681728,10.54215778,171.12,171.03,5.8468]
[1721924681959,28.15215778,171.12,170.97,35.8639]
[1721924682131,391.04215778,171.11,171.01,5.8475]
[1721924682331,10.54215778,171.1,171.01,5.8475]
[1721924682648,10.54215778,171.1,171.02,5.8472]
[1721924683428,380.5,171.11,171.03,5.8467]
[1721924683732,10.54421057,171.1,171.03,5.8467]
[1721924684360,380.5,171.11,171.03,5.8467]
[1721924684741,380.5,171.11,170.97,35.8639]
[1721924684742,380.5,171.11,171.04,5.8464]
[1721924684940,30.57822263,171.12,170.98,1.16932799]
[1721924684941,1.01822263,171.12,170.98,1.16932799]
[1721924685256,386.5393,171.14,171.07,5.8452]
[1721924686036,386.5393,171.14,171.08,5.8451]
[1721924687237,15.3445,171.15,171.1,5.8445]
[1721924687859,15.3445,171.15,171.03,30.72888008]
[1721924688077,15.3445,171.15,171.1,5.8442]
[1721924688248,15.3445,171.15,171.11,5.8441]
[1721924688842,6.2803,171.18,171.12,5.8438]
[1721924689163,15.8629,171.19,171.13,5.8434]
[1721924689343,15.8629,171.19,171.06,36.79904723]
[1721924689544,15.8629,171.19,171.13,5.8434]
[1721924689742,15.8629,171.19,171.12,5.8437]
[1721924690467,15.8629,171.19,171.1,5.8442]
[1721924691377,10.53879407,171.18,171.1,5.8442]
[1721924692139,10.53879407,171.18,171.12,5.8438]
[1721924692457,15.8629,171.19,171.12,5.8438]
[1721924692772,15.8629,171.19,171.1,5.8444]
[1721924693243,15.8629,171.19,171.06,6.0704]
[1721924693434,15.8629,171.19,171.13,5.8434]
[1721924693847,15.8629,171.19,171.14,5.8431]
[1721924694558,15.8629,171.19,171.13,5.8434]
[1721924695752,15.8629,171.19,171.11,5.8438]
[1721924695938,15.8629,171.19,171.12,5.8437]
[1721924696347,15.8629,171.19,171.1,5.8443]
[1721924696671,15.8629,171.19,171.09,5.8447]
[1721924696871,15.8629,171.19,171.1,25.8442]
[1721924697240,15.8629,171.19,171.1,5.8442]
[1721924697447,10.53856589,171.18,171.09,5.8447]
[1721924697750,10.53856589,171.18,171.1,5.8444]
[1721924697948,10.53856589,171.18,171.09,5.8447]
[1721924698361,10.53856589,171.18,171.1,5.8443]
[1721924699341,10.53856589,171.18,171.06,5.8457]
[1721924699342,23.4518,171.18,171.06,5.8457]
[1721924699541,23.4518,171.18,171.05,5.846]
[1721924699542,6.5918,171.15,171.05,5.846]
[1721924699978,10.54161489,171.14,171.05,5.846]
[1721924700185,10.54191019,171.13,171.05,5.846]
[1721924700346,10.54191019,171.14,171.05,5.846]
[1721924700542,10.54191019,171.14,171.02,6.1003]
[1721924700762,10.54191019,171.14,171.06,5.8456]
[1721924701152,10.54191019,171.14,171.02,6.1003]
[1721924701473,10.54191019,171.14,171.05,5.8459]
[1721924701774,6.5918,171.15,171.1,5.8445]
[1721924701955,6.5918,171.15,171.03,75.72911566]
[1721924702264,402.3949,171.19,171.1,5.8445]
[1721924702562,391.0394607,171.18,171.08,5.8451]
[1721924702743,37.61,171.16,171.03,45.0]
[1721924702944,391.0394607,171.15,171.03,45.0]
[1721924703163,10.5394607,171.14,171.05,5.8459]
[1721924703350,10.5394607,171.14,171.03,45.0]
[1721924703547,380.5,171.15,171.03,74.56]
[1721924703865,380.5,171.15,171.12,5.8438]
[1721924704074,21.8949,171.19,171.06,29.56]
[1721924704257,21.8949,171.19,171.07,82.45694846]
[1721924704566,15.8629,171.19,171.13,5.8432]
[1721924705169,15.8629,171.19,171.14,5.8429]
[1721924706043,380.5,171.21,171.15,5.8427]
[1721924706250,380.5,171.21,171.11,6.4227]
[1721924706470,6.0432,171.23,171.16,5.8421]
[1721924708652,6.0432,171.23,171.13,5.8434]
[1721924708872,6.0432,171.23,171.14,5.843]
[1721924709174,6.0432,171.23,171.11,6.4227]
[1721924709471,7.06067482,171.23,171.15,5.8427]
[1721924709966,7.06067482,171.23,171.14,5.8431]
[1721924710167,24.67067482,171.23,171.11,6.4227]
[1721924710372,28.14626545,171.22,171.11,12.2665]
[1721924710552,10.53626545,171.21,171.12,5.8437]
[1721924710745,10.53626545,171.22,171.12,5.8437]
[1721924710943,10.53626545,171.22,171.13,5.8431]
[1721924711146,10.53708911,171.21,171.14,5.8431]
[1721924711374,7.06067482,171.23,171.14,5.8431]
[1721924711560,10.53692536,171.22,171.14,5.8431]
[1721924712682,10.53692536,171.22,171.13,5.8434]
[1721924713380,10.53692536,171.22,171.14,5.8431]
[1721924713586,10.53692536,171.22,171.14,5.8428]
[1721924713871,7.06067482,171.23,171.14,5.8428]
[1721924714066,7.06067482,171.23,171.15,5.8427]
[1721924714586,7.06067482,171.23,171.14,5.843]
[1721924714750,10.53660725,171.22,171.14,5.843]
[1721924715152,7.06067482,171.23,171.15,5.8427]
[1721924715651,22.8144,171.24,171.11,29.56]
[1721924715852,16.3917,171.24,171.19,5.8414]
[1721924716259,16.3917,171.24,171.18,5.8417]
[1721924716447,16.3917,171.24,171.18,5.8416]
[1721924716862,16.3917,171.24,171.15,1.16832499]
[1721924717075,16.3917,171.24,171.15,21.16832499]
[1721924717276,16.3917,171.24,171.18,5.8417]
[1721924720382,16.3917,171.24,171.17,5.842]
[1721924720567,16.3917,171.24,171.15,20.0]
[1721924720758,16.3917,171.24,171.17,5.842]
[1721924720960,16.3917,171.24,171.14,5.843]
[1721924721157,83.5217,171.24,171.14,5.843]
[1721924721374,37.57,171.22,171.12,5.8435]
[1721924721575,28.10790543,171.21,171.12,5.8435]
[1721924721873,82.57,171.23,171.12,5.8435]
[1721924722065,10.53777137,171.22,171.13,5.8432]
[1721924722377,10.53777137,171.22,171.12,5.8437]
[1721924722378,28.10777137,171.22,171.12,5.8437]
[1721924722587,10.5376594,171.21,171.12,5.8437]
[1721924722880,28.1076594,171.21,171.12,5.8437]
[1721924723082,17.57,171.21,171.11,5.844]
[1721924723390,17.57,171.21,171.06,6.0966]
[1721924723391,6.0136,171.18,171.09,5.8446]
[1721924723577,6.0136,171.18,171.12,5.8435]
[1721924723775,6.0136,171.18,171.11,5.8441]
[1721924724173,6.0136,171.18,171.12,5.8438]
[1721924724677,380.5,171.19,171.06,7.26535726]
[1721924724868,380.5,171.19,171.07,45.0]
[1721924725178,380.5,171.19,171.08,30.72875564]
[1721924725391,380.5,171.19,171.09,45.0]
[1721924725683,380.5,171.19,171.16,5.8423]
[1721924725892,45.9517,171.24,171.17,5.8421]
[1721924726060,45.9517,171.24,171.1,20.0]
[1721924726061,16.3917,171.24,171.18,5.8417]
[1721924726255,16.3917,171.24,171.17,5.842]
[1721924726451,16.3917,171.24,171.12,15.4666]
[1721924726656,16.3917,171.24,171.14,5.843]
[1721924726855,45.9517,171.24,171.13,5.8434]
[1721924727083,10.53676973,171.23,171.12,5.8437]
[1721924727257,10.53676973,171.23,171.13,20.0]
[1721924727566,10.53676973,171.23,171.13,25.8434]
[1721924727760,28.10676973,171.23,171.12,5.8437]
[1721924727983,10.53695937,171.22,171.12,5.8437]
[1721924728588,427.63,171.21,171.08,1.16861766]
[1721924728891,459.44958594,171.2,171.09,5.8447]
[1721924729057,10.53818594,171.19,171.09,5.8447]
[1721924729382,16.1826,171.17,171.07,5.8454]
[1721924729589,10.53818594,171.16,171.07,5.8454]
[1721924730084,16.1826,171.17,171.08,5.8451]
[1721924730389,10.54026632,171.16,171.08,5.8451]
[1721924730564,10.54026632,171.16,171.02,6.5979]
[1721924730565,28.11026632,171.16,171.02,6.5979]
[1721924730893,17.57,171.14,171.02,6.5979]
[1721924731109,10.54026632,171.13,171.03,5.8468]
[1721924731292,6.2778,171.1,170.97,6.5947]
[1721924731505,23.4153,171.08,170.96,5.849]
[1721924731799,15.3763,171.04,170.93,6.5947]
[1721924731965,15.3763,171.04,170.95,5.8493]
[1721924732302,404.3478,171.03,170.92,5.8506]
[1721924732475,29.56,171.02,170.92,5.8506]
[1721924733886,29.56,171.02,170.9,1.17002145]
[1721924734100,386.7778,171.03,170.9,1.17002145]
[1721924734280,15.3763,171.04,170.92,29.56]
[1721924734471,15.3763,171.04,170.93,20.0]
[1721924734881,15.3763,171.04,170.97,5.8489]
[1721924735195,15.3763,171.04,170.96,5.8492]
[1721924735380,6.2388,171.07,170.94,1.16963682]
[1721924735571,6.2388,171.07,170.94,46.16963682]
[1721924735773,6.2388,171.07,170.95,20.0]
[1721924735973,6.2388,171.07,170.96,45.0]
[1721924736201,6.2388,171.07,171.0,5.8479]
[1721924736394,6.2388,171.07,170.97,20.0]
[1721924736598,69.6544,171.07,170.9,1.16956908]
[1721924736802,69.6544,171.07,170.93,20.0]
[1721924736803,47.13,171.05,170.93,20.0]
[1721924736983,47.13,171.05,170.95,5.8493]
[1721924737302,47.13,171.05,170.9,1.16980321]
[1721924737473,67.13,171.05,170.94,5.8496]
[1721924738102,29.56,171.05,170.95,5.8495]
[1721924738396,17.57,171.03,170.89,36.1547]
[1721924738787,17.57,171.03,170.93,5.8503]
[1721924738980,1.01882424,171.02,170.93,5.8503]
[1721924739470,18.58882424,171.02,170.93,5.8503]
[1721924739794,48.14882424,171.02,170.92,5.8506]
[1721924740113,30.57882424,171.02,170.89,6.5947]
[1721924740279,30.57882424,171.02,170.9,65.0]
[1721924740605,1.01882424,171.02,170.9,65.0]
[1721924740804,1.01882424,171.02,170.96,5.8492]
[1721924741004,1.01882424,171.02,170.95,5.8495]
[1721924741177,29.56,171.05,170.9,66.16977944]
[1721924741377,30.57866979,171.05,170.9,66.16977944]
[1721924741798,30.57866979,171.05,170.96,5.8491]
[1721924742102,30.57866979,171.05,170.95,5.8496]
[1721924742476,23.4166,171.04,170.93,5.85]
[1721924742679,17.57,171.04,170.93,5.85]
[1721924742897,48.14866979,171.05,170.94,7.01987019]
[1721924743107,1.01866979,171.05,170.95,1.1698469]
[1721924743310,6.06494528,171.06,171.0,5.8479]
[1721924743606,6.2388,171.07,170.93,20.0]
[1721924743810,6.2388,171.07,170.98,5.8485]
[1721924744315,6.2388,171.07,171.0,5.8479]
[1721924744697,6.2388,171.07,170.99,5.8482]
[1721924745123,6.2388,171.07,171.01,5.8474]
[1721924745499,6.2388,171.07,171.02,5.8472]
[1721924745698,6.2388,171.07,171.01,5.8475]
[1721924745924,15.875,171.08,171.02,1.169376]
[1721924746101,15.875,171.08,171.04,5.8464]
[1721924746417,15.875,171.08,171.0,5.8478]
[1721924746716,15.875,171.08,170.99,5.8482]
[1721924747599,15.875,171.08,170.97,5.8487]
[1721924747820,21.7202,171.08,170.96,5.8492]
[1721924748018,15.875,171.08,170.97,25.8488]
[1721924748212,37.57,171.07,170.95,5.8494]
[1721924748407,102.57,171.07,170.95,5.8495]
[1721924749017,108.4156,171.07,170.95,5.8495]
[1721924749222,29.56,171.06,170.95,5.8495]
[1721924749722,47.13,171.06,170.95,5.8495]
[1721924749926,47.13,171.06,170.96,5.8491]
[1721924749927,29.56,171.06,170.96,5.8491]
[1721924750318,62.57,171.07,170.96,5.8491]
[1721924750698,68.4156,171.07,170.96,5.8491]
[1721924751007,11.9118,171.06,170.91,1.16973708]
[1721924751208,386.5656,171.06,170.96,5.8492]
[1721924751414,404.1356,171.06,170.96,5.8492]
[1721924751624,404.1356,171.06,170.95,5.8495]
[1721924751802,20.0,171.05,170.94,5.8499]
[1721924752125,17.57,171.05,170.94,5.8499]
[1721924752306,23.4162,171.05,170.93,5.85]
[1721924752627,23.4162,171.05,170.94,21.16984352]
[1721924752797,57.57,171.05,170.93,5.85]
[1721924752997,15.9976,171.03,170.93,5.85]
[1721924753405,15.9976,171.03,170.88,15.3025]
[1721924753406,15.9976,171.03,170.92,5.8505]
[1721924753636,21.8445,171.03,170.92,5.8505]
[1721924753799,39.4145,171.03,170.92,5.8505]
[1721924753999,59.4145,171.03,170.92,5.8505]
[1721924754198,33.5676,171.03,170.93,1.17001594]
[1721924754433,15.9976,171.03,170.94,5.8499]
[1721924754920,15.9976,171.03,170.9,1.16987949]
[1721924756219,380.5,170.91,170.81,5.8544]
[1721924756424,380.5,170.91,170.78,6.0094]
[1721924756425,380.5,170.91,170.82,5.8538]
[1721924756623,380.5,170.91,170.78,7.1800654]
[1721924757110,380.5,170.91,170.79,20.0]
[1721924757295,380.5,170.91,170.84,5.8534]
[1721924757894,380.5,170.91,170.82,5.8539]
[1721924758513,380.5,170.91,170.79,20.0]
[1721924758715,380.5,170.91,170.81,5.8544]
[1721924759120,380.5,170.91,170.82,5.854]
[1721924759310,21.1419,170.92,170.82,5.854]
[1721924759519,21.1419,170.92,170.85,5.8529]
[1721924759720,21.1419,170.92,170.86,5.8526]
[1721924760102,21.1419,170.92,170.8,1.17059699]
[1721924760418,21.1419,170.92,170.8,46.17059699]
[1721924760722,15.5847,170.96,170.92,5.8506]
[1721924761112,15.5247,171.0,170.93,5.8501]
[1721924761506,15.5247,171.0,170.87,6.543]
[1721924761701,15.5247,171.0,170.88,65.0]
[1721924761922,15.5247,171.0,170.89,5.8516]
[1721924762139,15.5247,171.0,170.9,65.0]
[1721924762429,15.5247,171.0,170.91,5.8509]
[1721924762809,15.5247,171.0,170.9,45.0]
[1721924763016,15.5247,171.0,170.9,50.8512]
[1721924763516,15.5247,171.0,170.73,72.08881987]
[1721924763517,37.57,170.99,170.83,21.8443]
[1721924763743,380.5,170.98,170.87,5.8522]
[1721924763918,380.5,170.98,170.85,1.17004849]
[1721924764117,380.5,170.98,170.9,5.8512]
[1721924764328,15.5247,171.0,170.9,5.8512]
[1721924764631,15.5247,171.0,170.91,5.8509]
[1721924764806,15.5247,171.0,170.9,5.8512]
[1721924765012,15.5247,171.0,170.84,20.0]
[1721924765013,37.57,170.99,170.84,20.0]
[1721924765222,37.57,170.99,170.87,5.8523]
[1721924765223,43.4185,170.99,170.87,5.8523]
[1721924765932,17.57,170.96,170.83,21.8443]
[1721924766108,398.07,170.96,170.83,6.1039]
[1721924766313,398.07,170.96,170.8,1.17052463]
[1721924766536,403.9193,170.96,170.8,1.17052463]
[1721924766737,403.9193,170.96,170.85,5.853]
[1721924766738,1.01924213,170.95,170.85,5.853]
[1721924767209,1.01924213,170.95,170.83,5.8534]
[1721924767210,21.9496,170.93,170.83,5.8534]
[1721924767629,21.9496,170.93,170.83,5.8536]
[1721924767829,21.9496,170.93,170.79,22.8298]
[1721924768144,21.9496,170.93,170.85,5.8527]
[1721924768333,21.9496,170.93,170.8,1.17059288]
[1721924768519,21.9496,170.93,170.87,5.8523]
[1721924768834,21.9496,170.93,170.84,5.8531]
[1721924769038,21.9496,170.93,170.83,5.8537]
[1721924769253,21.9496,170.93,170.8,45.0]
[1721924769254,5.8507,170.92,170.8,5.8545]
[1721924769542,5.8507,170.92,170.79,22.8298]
[1721924769543,59.5196,170.93,170.79,22.8298]
[1721924769743,65.37,170.93,170.79,6.4399]
[1721924769931,39.5196,170.93,170.79,6.4399]
[1721924770232,65.3699,170.93,170.79,6.4399]
[1721924770542,448.9207,170.92,170.8,20.0]
[1721924770842,443.07,170.92,170.8,20.0]
[1721924771028,43.4216,170.9,170.75,22.6107]
[1721924771230,380.5,170.89,170.75,22.6107]
[1721924771751,380.5,170.89,170.76,1.17083878]
[1721924772040,380.5,170.89,170.77,1.17063183]
[1721924772536,380.5,170.89,170.77,34.48063183]
[1721924772731,380.5,170.89,170.78,45.0]
[1721924772937,380.5,170.89,170.79,21.17040944]
[1721924773149,380.5,170.89,170.8,46.17040986]
[1721924773321,380.5,170.89,170.81,20.0]
[1721924773515,380.5,170.89,170.82,45.0]
[1721924773716,21.9496,170.93,170.83,20.0]
[1721924773912,21.9496,170.93,170.84,45.0]
[1721924776714,1.01924213,170.95,170.85,20.0]
[1721924776917,22.1594,170.97,170.86,46.17012048]
[1721924777243,396.2345,171.01,170.87,20.0]
[1721924777415,396.2345,171.01,170.88,46.16981924]
[1721924777614,380.5,171.06,170.89,20.0]
[1721924777853,15.5159,171.05,170.9,52.65424763]
[1721924778024,15.5159,171.05,170.91,20.0]
[1721924778341,15.5159,171.05,170.92,46.16955924]
[1721924778722,5.8468,171.04,170.93,20.0]
[1721924779123,15.5159,171.05,170.93,21.16983247]
[1721924779319,15.5159,171.05,170.94,45.0]
[1721924779524,15.5159,171.05,170.94,46.16972394]
[1721924779735,15.5159,171.05,170.95,20.0]
[1721924780038,16.53454483,171.05,170.95,20.0]
[1721924781351,16.53454483,171.05,170.96,45.0]
[1721924781839,16.53454483,171.05,170.95,20.0]
[1721924782011,16.53454483,171.05,170.96,1.16969562]
[1721924782218,6.0235,171.07,170.93,15.9675]
[1721924782424,7.05841211,171.08,170.94,66.16942855]
[1721924782618,1.01853056,171.08,170.94,66.16942855]
[1721924784449,1.01853056,171.08,170.94,65.0]
[1721924785745,1.01853056,171.08,170.94,45.0]
[1721924785746,17.57,171.07,170.94,45.0]
[1721924785949,20.0,171.06,170.94,45.0]
[1721924786251,66.01853056,171.08,170.94,45.0]
[1721924786252,1.01853056,171.08,170.94,45.0]
[1721924786452,1.01853056,171.08,170.95,1.1695663]
[1721924786651,1.01853056,171.08,170.94,45.0]
[1721924787150,1.01853056,171.08,170.95,21.16956363]
[1721924787354,1.01853056,171.08,170.96,46.16942734]
[1721924787653,1.01853056,171.08,170.97,20.0]
[1721924787856,1.01853056,171.08,170.98,45.0]
[1721924788429,1.01853056,171.08,170.99,7.27082678]
[1721924788721,1.01853056,171.08,170.99,6.1014]
[1721924789556,1.01853056,171.08,171.0,1.16942678]
[1721924790131,1.01853056,171.08,171.0,46.16932008]
[1721924790329,16.534545,171.12,171.02,16.3181]
[1721924790635,7.65951986,171.16,171.03,65.0]
[1721924790844,7.65951986,171.16,171.03,66.16912238]
[1721924791046,23.59192539,171.15,171.03,66.16912238]
[1721924791349,5.8432,171.14,171.03,65.0]
[1721924791743,29.43482539,171.15,171.03,65.0]
[1721924792260,23.59192539,171.15,171.03,65.0]
[1721924792438,23.59192539,171.15,171.03,66.16914521]
[1721924792759,29.43482539,171.15,171.03,66.16914521]
[1721924793254,23.59192539,171.15,171.03,66.16914521]
[1721924794158,6.02192539,171.15,171.04,1.16914647]
[1721924794462,1.01801986,171.16,171.05,1.16893641]
[1721924795646,15.8849,171.17,171.05,1.16893641]
[1721924795857,36.0823,171.2,171.06,6.3832]
[1721924796161,440.17215885,171.2,171.07,66.16880954]
[1721924796371,440.17215885,171.2,171.08,1.16880961]
[1721924796532,422.60215885,171.2,171.07,65.0]
[1721924797255,446.01335885,171.2,171.07,65.0]
[1721924798034,422.60215885,171.2,171.07,65.0]
[1721924798240,416.08985885,171.2,171.08,1.16877219]
[1721924798441,416.08985885,171.2,171.07,65.0]
[1721924798852,417.10762499,171.2,171.07,65.0]
[1721924799657,381.51776614,171.2,171.07,65.0]
[1721924801056,1.01776614,171.2,171.07,65.0]
[1721924802645,18.58776614,171.2,171.07,20.0]
[1721924802840,1.01776614,171.2,171.08,1.16880594]
[1721924803253,1.01776614,171.2,171.07,20.0]
[1721924803945,1.01776614,171.2,171.08,45.0]
[1721924804147,1.01776614,171.2,171.09,20.0]
[1721924805447,29.57,171.19,171.09,20.0]
[1721924806368,29.57,171.19,171.09,21.16878173]
[1721924806870,29.57,171.19,171.09,20.0]
[1721924807262,29.57,171.19,171.06,6.3832]
[1721924807449,29.57,171.19,171.07,45.0]
[1721924807970,47.14,171.19,171.07,45.0]
[1721924808145,47.14,171.19,171.06,6.3832]
[1721924808146,57.57,171.18,171.06,6.3832]
[1721924808353,47.14,171.16,171.06,6.3832]
[1721924808646,29.57,171.19,171.06,6.3832]
[1721924809052,381.51776614,171.2,171.06,6.3832]
[1721924809759,381.51776614,171.2,171.07,65.0]
[1721924810164,399.08776614,171.2,171.07,65.0]
[1721924810848,439.08776614,171.2,171.07,65.0]
[1721924811073,404.92896614,171.2,171.07,65.0]
[1721924811373,399.08776614,171.2,171.07,65.0]
[1721924811671,17.57,171.18,171.07,20.0]
[1721924811871,17.57,171.18,171.06,6.3832]
[1721924812168,381.51776614,171.2,171.06,6.3832]
[1721924812169,47.14,171.16,171.06,6.3832]
[1721924812970,427.64,171.16,171.06,6.3832]
[1721924813274,6.08138462,171.15,171.06,6.3832]
[1721924813469,23.65138462,171.15,171.06,6.3832]
[1721924814447,6.08138462,171.15,171.06,6.3832]
[1721924814645,380.5,171.16,171.07,21.16887796]
[1721924814843,380.5,171.16,171.07,20.0]
[1721924815977,380.5,171.16,171.08,45.0]